fUST/lending_fUST_20240904
["ID","MTS","AMOUNT","RATE_DAILY","PERIOD"]
[337071425,1725412031591,-500.0,0.00027397,2]
[337071426,1725412031614,-500.0,0.00027397,2]
[337071427,1725412031636,-502.68949708,0.00027397,2]
[337071428,1725412031659,-500.0,0.00027397,2]
[337071429,1725412031683,-500.0,0.00027397,2]
[337071430,1725412031706,-502.64709279,0.00027397,2]
[337071431,1725412031726,-500.0,0.00027397,2]
[337071432,1725412031751,-500.0,0.00027397,2]
[337071433,1725412031777,-500.0,0.00027397,2]
[337071434,1725412031800,-1083.08,0.00027397,2]
[337071435,1725412031823,-500.0,0.00027397,2]
[337071436,1725412031846,-500.0,0.00027397,2]
[337071437,1725412031870,-579.23,0.00027397,2]
[337071438,1725412031891,-500.0,0.00027397,2]
[337071439,1725412031914,-500.0,0.00027397,2]
[337071440,1725412031936,-500.0,0.00027397,2]
[337071441,1725412031960,-500.0,0.00027397,2]
[337071442,1725412031982,-500.0,0.00027397,2]
[337071443,1725412032004,-500.0,0.00027397,2]
[337071444,1725412032024,-1391.72,0.00027397,2]
[337071445,1725412032046,-500.0,0.00027397,2]
[337071446,1725412032067,-2990.0,0.00027397,2]
[337071447,1725412032088,-500.0,0.00027397,2]
[337071448,1725412032185,-500.0,0.00027397,2]
[337071449,1725412032208,-507.5022878,0.00027397,2]
[337071450,1725412032230,-500.0,0.00027397,2]
[337071451,1725412032254,-508.09641986,0.00027397,2]
[337071452,1725412032274,-500.0,0.00027397,2]
[337071453,1725412032295,-500.0,0.00027397,2]
[337071454,1725412032314,-1000.0,0.00027397,5]
[337071455,1725412032334,-500.0,0.00027397,2]
[337071456,1725412032354,-500.0,0.00027397,2]
[337071457,1725412032375,-636.62,0.00027397,2]
[337071458,1725412032397,-500.0,0.00027397,2]
[337071459,1725412032418,-501.41725407,0.00027397,2]
[337071460,1725412032439,-500.0,0.00027397,2]
[337071461,1725412032461,-500.0,0.00027397,2]
[337071462,1725412032484,-500.0,0.00027397,2]
[337071463,1725412032512,-295.4491993,0.00027397,2]
[337071464,1725412032532,-500.0,0.00027397,2]
[337071465,1725412032552,-4765.94,0.00027397,2]
[337071466,1725412032574,-26917.87,0.00027397,2]
[337071467,1725412032593,-500.0,0.00027397,2]
[337071468,1725412032614,-500.0,0.00027397,2]
[337071469,1725412032633,-500.0,0.00027397,2]
[337071470,1725412032659,-500.0,0.00027397,2]
[337071471,1725412032679,-500.0,0.00027397,2]
[337071472,1725412032701,-1807.95,0.00027397,2]
[337071473,1725412032722,-500.0,0.00027397,2]
[337071474,1725412032744,-500.0,0.00027397,2]
[337071475,1725412032768,-500.81196104,0.00027397,2]
[337071476,1725412032789,-1009.35,0.00027397,2]
[337071477,1725412032808,-501.55291661,0.00027397,2]
[337071478,1725412032829,-2949.57,0.00027397,2]
[337071479,1725412032849,-500.0,0.00027397,2]
[337071480,1725412032869,-500.0,0.00027397,2]
[337071481,1725412032891,-500.0,0.00027397,2]
[337071482,1725412032912,-501.18162578,0.00027397,2]
[337071483,1725412032933,-7775.55,0.00027397,2]
[337071484,1725412032955,-7201.63,0.00027397,2]
[337071485,1725412032975,-500.0,0.00027397,2]
[337071486,1725412032999,-500.0,0.00027397,2]
[337071487,1725412033020,-500.0,0.00027397,2]
[337071488,1725412033041,-500.0,0.00027397,2]
[337071489,1725412033063,-501.37921443,0.00027397,2]
[337071490,1725412033085,-500.0,0.00027397,2]
[337071491,1725412033106,-500.0,0.00027397,2]
[337071492,1725412033128,-12444.08,0.00027397,2]
[337071493,1725412033150,-500.0,0.00027397,2]
[337071494,1725412033170,-501.03945708,0.00027397,2]
[337071495,1725412033190,-500.0,0.00027397,2]
[337071496,1725412033211,-500.0,0.00027397,2]
[337071497,1725412033231,-500.0,0.00027397,2]
[337071498,1725412033255,-500.0,0.00027397,2]
[337071499,1725412033275,-500.0,0.00027397,2]
[337071500,1725412033296,-500.0,0.00027397,2]
[337071501,1725412033315,-500.0,0.00027397,2]
[337071502,1725412033336,-500.0,0.00027397,2]
[337071503,1725412033357,-3784.92,0.00027397,2]
[337071504,1725412033378,-500.0,0.00027397,2]
[337071505,1725412033485,-1407.73,0.00027397,2]
[337071506,1725412033508,-500.0,0.00027397,2]
[337071507,1725412033529,-1214.27,0.00027397,2]
[337071508,1725412033550,-500.94808934,0.00027397,2]
[337071509,1725412033570,-500.0,0.00027397,2]
[337071510,1725412033590,-500.0,0.00027397,2]
[337071511,1725412033610,-500.0,0.00027397,2]
[337071512,1725412033630,-500.0,0.00027397,2]
[337071513,1725412033651,-503.07507121,0.00027397,2]
[337071514,1725412033678,-2942.04,0.00027397,2]
[337071515,1725412033699,-500.0,0.00027397,2]
[337071516,1725412033719,-501.40202087,0.00027397,2]
[337071517,1725412033739,-500.0,0.00027397,2]
[337071518,1725412033764,-503.19584898,0.00027397,2]
[337071519,1725412033784,-500.0,0.00027397,2]
[337071520,1725412033805,-500.0,0.00027397,2]
[337071521,1725412033826,-544.69733824,0.00027397,2]
[337071522,1725412033846,-609.62,0.00027397,2]
[337071523,1725412033871,-445.35286149,0.00027397,2]
[337071524,1725412033894,-714.07,0.00027397,2]
[337071525,1725412033916,-500.0,0.00027397,2]
[337071526,1725412033937,-500.0,0.00027397,2]
[337071527,1725412033958,-501.51572132,0.00027397,2]
[337071528,1725412033979,-500.0,0.00027397,2]
[337071529,1725412034005,-500.0,0.00027397,2]
[337071530,1725412034027,-724.84,0.00027397,2]
[337071531,1725412034050,-500.0,0.00027397,2]
[337071532,1725412034072,-500.0,0.00027397,2]
[337071533,1725412034095,-500.0,0.00027397,2]
[337071534,1725412034118,-500.0,0.00027397,2]
[337071535,1725412034141,-500.0,0.00027397,2]
[337071536,1725412034163,-500.0,0.00027397,2]
[337071537,1725412034184,-1732.72,0.00027397,2]
[337071538,1725412034206,-500.0,0.00027397,2]
[337071539,1725412034226,-500.0,0.00027397,2]
[337071540,1725412034250,-500.0,0.00027397,2]
[337071541,1725412034272,-500.0,0.00027397,2]
[337071542,1725412034292,-500.73647584,0.00027397,2]
[337071543,1725412034312,-802.18,0.00027397,2]
[337071544,1725412034333,-308.04672881,0.00027397,2]
[337071545,1725412034353,-500.0,0.00027397,2]
[337071546,1725412034374,-555.08497655,0.00027397,2]
[337071547,1725412034395,-756.67,0.00027397,2]
[337071548,1725412034416,-500.0,0.00027397,2]
[337071549,1725412034437,-502.41465057,0.00027397,2]
[337071550,1725412034458,-500.0,0.00027397,2]
[337071551,1725412034480,-500.0,0.00027397,2]
[337071552,1725412034504,-500.0,0.00027397,2]
[337071553,1725412034524,-667.39,0.00027397,2]
[337071554,1725412034546,-503.12612295,0.00027397,2]
[337071555,1725412034567,-500.0,0.00027397,2]
[337071556,1725412034588,-500.0,0.00027397,2]
[337071557,1725412034609,-500.0,0.00027397,2]
[337071558,1725412034632,-500.0,0.00027397,2]
[337071559,1725412034737,-486.36328733,0.00027397,2]
[337071560,1725412034770,-564.37,0.00027397,2]
[337071561,1725412034792,-6249.83,0.00027397,2]
[337071562,1725412034813,-2061.58,0.00027397,2]
[337071563,1725412034835,-595.97,0.00027397,2]
[337071564,1725412034856,-500.0,0.00027397,2]
[337071565,1725412034879,-500.0,0.00027397,2]
[337071566,1725412034902,-15395.17,0.00027397,2]
[337071567,1725412034923,-500.0,0.00027397,2]
[337071568,1725412034944,-500.0,0.00027397,2]
[337071569,1725412034967,-503.42900341,0.00027397,2]
[337071570,1725412034989,-5108.18,0.00027397,2]
[337071571,1725412035015,-1978.5,0.00027397,2]
[337071572,1725412035035,-529.38407935,0.00027397,2]
[337071573,1725412035057,-864.76,0.00027397,2]
[337071574,1725412035078,-500.0,0.00027397,2]
[337071575,1725412035101,-6313.47,0.00027397,2]
[337071576,1725412035122,-500.0,0.00027397,2]
[337071577,1725412035146,-500.0,0.00027397,2]
[337071578,1725412035168,-500.0,0.00027397,2]
[337071579,1725412035191,-753.02,0.00027397,2]
[337071580,1725412035214,-500.0,0.00027397,2]
[337071581,1725412035236,-527.31034147,0.00027397,2]
[337071582,1725412035264,-500.0,0.00027397,2]
[337071583,1725412035286,-500.0,0.00027397,2]
[337071584,1725412035310,-996.8,0.00027397,2]
[337071585,1725412035332,-501.89121162,0.00027397,2]
[337071586,1725412035354,-1427.5,0.00027397,2]
[337071587,1725412035377,-500.0,0.00027397,2]
[337071588,1725412035399,-500.0,0.00027397,2]
[337071589,1725412035421,-500.0,0.00027397,2]
[337071590,1725412035445,-500.0,0.00027397,2]
[337071591,1725412035468,-500.0,0.00027397,2]
[337071592,1725412035492,-500.0,0.00027397,2]
[337071593,1725412035517,-514.68372386,0.00027397,2]
[337071594,1725412035538,-500.0,0.00027397,2]
[337071595,1725412035558,-500.0,0.00027397,2]
[337071596,1725412035580,-783.29,0.00027397,2]
[337071597,1725412035603,-6777.17,0.00027397,2]
[337071598,1725412035625,-3455.12,0.00027397,2]
[337071599,1725412035645,-500.0,0.00027397,2]
[337071600,1725412035666,-500.0,0.00027397,2]
[337071601,1725412035689,-500.0,0.00027397,2]
[337071602,1725412035710,-500.0,0.00027397,2]
[337071603,1725412035732,-2196.47,0.00027397,2]
[337071604,1725412035757,-500.0,0.00027397,2]
[337071605,1725412035780,-1236.04,0.00027397,2]
[337071606,1725412035803,-500.0,0.00027397,2]
[337071607,1725412035825,-500.0,0.00027397,2]
[337071608,1725412035847,-500.0,0.00027397,2]
[337071609,1725412035870,-3620.6,0.00027397,2]
[337071610,1725412035893,-500.0,0.00027397,2]
[337071611,1725412035994,-731.84,0.00027397,2]
[337071612,1725412036022,-500.0,0.00027397,2]
[337071613,1725412036048,-585.46,0.00027397,2]
[337071614,1725412036070,-500.0,0.00027397,2]
[337071615,1725412036092,-500.0,0.00027397,2]
[337071616,1725412036113,-500.0,0.00027397,2]
[337071617,1725412036135,-500.0,0.00027397,2]
[337071618,1725412036158,-529.4,0.00027397,2]
[337071619,1725412036180,-502.86692837,0.00027397,2]
[337071620,1725412036202,-502.2692842,0.00027397,2]
[337071621,1725412036226,-11571.44,0.00027397,2]
[337071622,1725412036250,-500.0,0.00027397,2]
[337071623,1725412036276,-11571.44,0.00027397,2]
[337071624,1725412036300,-11571.44,0.00027397,2]
[337071625,1725412036324,-11571.44,0.00027397,2]
[337071626,1725412036347,-11571.44,0.00027397,2]
[337071627,1725412036371,-11571.44,0.00027397,2]
[337071628,1725412036397,-500.0,0.00027397,2]
[337071629,1725412036420,-11571.44,0.00027397,2]
[337071630,1725412036443,-11571.44,0.00027397,2]
[337071631,1725412036465,-6858.52377146,0.00027397,2]
[337071632,1725412037527,-4712.91622854,0.00027397,2]
[337071633,1725412037549,-11571.44,0.00027397,2]
[337071634,1725412037572,-502.01421873,0.00027397,2]
[337071635,1725412037594,-68802.23,0.00027397,2]
[337071636,1725412037614,-506.69,0.00027397,2]
[337071637,1725412037635,-500.0,0.00027397,2]
[337071638,1725412037656,-500.0,0.00027397,2]
[337071639,1725412037678,-815.77948554,0.00027571,2]
[337071640,1725412037700,-11571.44,0.0002766,2]
[337071641,1725412037723,-11571.44,0.0002766,2]
[337071642,1725412037744,-11571.44,0.0002766,2]
[337071643,1725412037772,-371.38150965,0.00027661,15]
[337071644,1725412037795,-2769.57217754,0.00027661,3]
[337071645,1725412038125,-157.34769764,0.00027661,3]
[337071646,1725412039189,-234.41,0.00027387,3]
[337071647,1725412039212,-500.0,0.00027397,2]
[337071648,1725412039235,-500.0,0.00027397,2]
[337071649,1725412039268,-9144.328602,0.00027661,3]
[337071650,1725412043117,-1676.36,0.00027397,2]
[337071651,1725412043144,-500.0,0.00027397,2]
[337071652,1725412043168,-1732.62,0.00027397,2]
[337071653,1725412043193,-67628.285405,0.00027661,3]
[337071654,1725412051125,-500.0,0.00027397,2]
[337071655,1725412051150,-500.0,0.00027397,2]
[337071656,1725412051176,-500.0,0.00027397,2]
[337071657,1725412051199,-500.0,0.00027397,2]
[337071658,1725412051222,-500.0,0.00027397,2]
[337071659,1725412051243,-500.0,0.00027397,2]
[337071660,1725412051272,-500.0,0.00027397,2]
[337071661,1725412051298,-500.0,0.00027397,2]
[337071662,1725412051320,-500.0,0.00027397,2]
[337071663,1725412051493,-500.0,0.00027397,2]
[337071664,1725412051524,-500.0,0.00027397,2]
[337071665,1725412051547,-35299.11355782,0.00027661,3]
[337071666,1725412051568,-1387.470918,0.00027661,7]
[337071667,1725412051590,-1387.470918,0.00027661,7]
[337071668,1725412051612,-151.0,0.00027661,7]
[337071669,1725412051634,-151.0,0.00027661,7]
[337071670,1725412051657,-151.148213,0.00027661,7]
[337071671,1725412051680,-151.148213,0.00027661,7]
[337071672,1725412051706,-151.0,0.00027661,7]
[337071673,1725412051727,-11571.44,0.0002767,2]
[337071674,1725412051749,-11571.44,0.0002767,2]
[337071675,1725412051777,-11571.44,0.0002767,2]
[337071676,1725412051801,-11571.44,0.0002767,2]
[337071677,1725412051824,-500.0,0.00027671,2]
[337071678,1725412051845,-502.75406935,0.00027671,2]
[337071679,1725412051865,-500.0,0.00027671,2]
[337071680,1725412051887,-502.61315908,0.00027671,2]
[337071681,1725412051910,-500.0,0.00027671,2]
[337071682,1725412051931,-1294.43,0.00027671,2]
[337071683,1725412051952,-500.0,0.00027671,2]
[337071684,1725412051973,-500.0,0.00027671,2]
[337071685,1725412051997,-500.0,0.00027671,2]
[337071686,1725412052023,-500.0,0.00027671,2]
[337071687,1725412052044,-500.0,0.00027671,2]
[337071688,1725412052066,-500.0,0.00027671,2]
[337071689,1725412052093,-500.0,0.00027671,2]
[337071690,1725412052115,-500.0,0.00027671,2]
[337071691,1725412052136,-500.0,0.00027671,2]
[337071692,1725412052156,-500.0,0.00027671,2]
[337071693,1725412052178,-495.52717829,0.00027671,2]
[337071694,1725412052211,-500.0,0.00027671,2]
[337071695,1725412052234,-500.0,0.00027671,2]
[337071696,1725412052256,-500.0,0.00027671,2]
[337071697,1725412052282,-499.12177015,0.00027671,2]
[337071698,1725412052303,-500.0,0.00027671,2]
[337071699,1725412052327,-500.0,0.00027671,2]
[337071700,1725412052349,-500.0,0.00027671,2]
[337071701,1725412052370,-500.0,0.00027671,2]
[337071702,1725412052392,-500.0,0.00027671,2]
[337071703,1725412052413,-500.0,0.00027671,2]
[337071704,1725412052434,-500.0,0.00027671,2]
[337071705,1725412052455,-500.0,0.00027671,2]
[337071706,1725412052477,-500.0,0.00027671,2]
[337071707,1725412052498,-500.0,0.00027671,2]
[337071708,1725412052522,-500.0,0.00027671,2]
[337071709,1725412052544,-500.0,0.00027671,2]
[337071710,1725412052565,-503.79007726,0.00027671,2]
[337071711,1725412052587,-500.0,0.00027671,2]
[337071712,1725412052608,-500.0,0.00027671,2]
[337071713,1725412052630,-500.0,0.00027671,2]
[337071714,1725412052651,-500.0,0.00027671,2]
[337071715,1725412052680,-500.0,0.00027671,2]
[337071716,1725412052703,-500.0,0.00027671,2]
[337071717,1725412052725,-500.0,0.00027671,2]
[337071718,1725412052748,-1083.08,0.00027671,2]
[337071719,1725412052772,-503.74377526,0.00027671,2]
[337071720,1725412052793,-500.0,0.00027671,2]
[337071721,1725412052815,-579.23,0.00027671,2]
[337071722,1725412052837,-500.0,0.00027671,2]
[337071723,1725412052859,-500.0,0.00027671,2]
[337071724,1725412052880,-500.0,0.00027671,2]
[337071725,1725412052905,-500.0,0.00027671,2]
[337071726,1725412052928,-500.0,0.00027671,2]
[337071727,1725412052951,-500.0,0.00027671,2]
[337071728,1725412052974,-1391.72,0.00027671,2]
[337071729,1725412052998,-502.71053145,0.00027671,2]
[337071730,1725412053027,-500.0,0.00027671,2]
[337071731,1725412053051,-500.0,0.00027671,2]
[337071732,1725412053076,-500.0,0.00027671,2]
[337071733,1725412053100,-500.0,0.00027671,2]
[337071734,1725412053123,-798.96062452,0.00027671,5]
[337071735,1725412053147,-500.0,0.00027671,2]
[337071736,1725412053172,-500.0,0.00027671,2]
[337071737,1725412053200,-636.62,0.00027671,2]
[337071738,1725412053222,-527.02994717,0.00027671,2]
[337071739,1725412053245,-500.0,0.00027671,2]
[337071740,1725412053270,-500.0,0.00027671,2]
[337071741,1725412053293,-500.0,0.00027671,2]
[337071742,1725412053316,-4765.94,0.00027671,2]
[337071743,1725412053339,-510.70895207,0.00027671,2]
[337071744,1725412053362,-500.0,0.00027671,2]
[337071745,1725412053385,-500.0,0.00027671,2]
[337071746,1725412053407,-501.59075437,0.00027671,2]
[337071747,1725412053428,-217.55934385,0.00027671,2]
[337071748,1725412053450,-500.0,0.00027671,2]
[337071749,1725412053471,-500.0,0.00027671,2]
[337071750,1725412053494,-1009.35,0.00027671,2]
[337071751,1725412053520,-2949.57,0.00027671,2]
[337071752,1725412053543,-500.0,0.00027671,2]
[337071753,1725412053672,-500.0,0.00027671,2]
[337071754,1725412053694,-500.0,0.00027671,2]
[337071755,1725412053718,-7775.55,0.00027671,2]
[337071756,1725412053743,-7201.63,0.00027671,2]
[337071757,1725412053769,-500.0,0.00027671,2]
[337071758,1725412053792,-500.0,0.00027671,2]
[337071759,1725412053812,-500.0,0.00027671,2]
[337071760,1725412053835,-500.0,0.00027671,2]
[337071761,1725412053856,-500.0,0.00027671,2]
[337071762,1725412053879,-500.0,0.00027671,2]
[337071763,1725412053902,-12444.08,0.00027671,2]
[337071764,1725412053924,-503.95367661,0.00027671,2]
[337071765,1725412053946,-151.0,0.00027671,7]
[337071766,1725412053968,-503.61519013,0.00027671,2]
[337071767,1725412053990,-500.0,0.00027671,2]
[337071768,1725412054017,-505.75905998,0.00027671,2]
[337071769,1725412054038,-500.0,0.00027671,2]
[337071770,1725412054059,-502.69261701,0.00027671,2]
[337071771,1725412054081,-500.0,0.00027671,2]
[337071772,1725412054101,-500.0,0.00027671,2]
[337071773,1725412054123,-500.0,0.00027671,2]
[337071774,1725412054144,-3784.92,0.00027671,2]
[337071775,1725412054166,-1407.73,0.00027671,2]
[337071776,1725412054188,-500.0,0.00027671,2]
[337071777,1725412054210,-500.99126401,0.00027671,2]
[337071778,1725412054232,-1214.27,0.00027671,2]
[337071779,1725412054253,-500.0,0.00027671,2]
[337071780,1725412054277,-500.0,0.00027671,2]
[337071781,1725412054299,-500.0,0.00027671,2]
[337071782,1725412054320,-500.0,0.00027671,2]
[337071783,1725412054340,-2942.04,0.00027671,2]
[337071784,1725412054362,-500.0,0.00027671,2]
[337071785,1725412054382,-500.0,0.00027671,2]
[337071786,1725412054402,-500.0,0.00027671,2]
[337071787,1725412054423,-500.0,0.00027671,2]
[337071788,1725412054444,-609.62,0.00027671,2]
[337071789,1725412054467,-714.07,0.00027671,2]
[337071790,1725412054489,-500.0,0.00027671,2]
[337071791,1725412054512,-500.0,0.00027671,2]
[337071792,1725412054533,-501.56182651,0.00027671,2]
[337071793,1725412054553,-500.0,0.00027671,2]
[337071794,1725412054575,-724.84,0.00027671,2]
[337071795,1725412054596,-500.0,0.00027671,2]
[337071796,1725412054617,-500.0,0.00027671,2]
[337071797,1725412054638,-500.0,0.00027671,2]
[337071798,1725412054663,-500.0,0.00027671,2]
[337071799,1725412054684,-500.0,0.00027671,2]
[337071800,1725412054705,-502.8150363,0.00027671,2]
[337071801,1725412054728,-1732.72,0.00027671,2]
[337071802,1725412054759,-500.0,0.00027671,2]
[337071803,1725412054791,-500.0,0.00027671,2]
[337071804,1725412054813,-500.0,0.00027671,2]
[337071805,1725412054834,-500.0,0.00027671,2]
[337071806,1725412054855,-802.18,0.00027671,2]
[337071807,1725412054879,-500.0,0.00027671,2]
[337071808,1725412054901,-756.67,0.00027671,2]
[337071809,1725412054924,-500.0,0.00027671,2]
[337071810,1725412054945,-500.0,0.00027671,2]
[337071811,1725412054971,-500.0,0.00027671,2]
[337071812,1725412054992,-500.0,0.00027671,2]
[337071813,1725412055024,-667.39,0.00027671,2]
[337071814,1725412055048,-500.0,0.00027671,2]
[337071815,1725412055069,-500.0,0.00027671,2]
[337071816,1725412055091,-500.0,0.00027671,2]
[337071817,1725412055113,-500.0,0.00027671,2]
[337071818,1725412055134,-564.37,0.00027671,2]
[337071819,1725412055155,-6249.83,0.00027671,2]
[337071820,1725412055178,-2061.58,0.00027671,2]
[337071821,1725412055201,-595.97,0.00027671,2]
[337071822,1725412055222,-500.0,0.00027671,2]
[337071823,1725412055244,-500.0,0.00027671,2]
[337071824,1725412055268,-15395.17,0.00027671,2]
[337071825,1725412055289,-500.0,0.00027671,2]
[337071826,1725412055309,-500.0,0.00027671,2]
[337071827,1725412055330,-5108.18,0.00027671,2]
[337071828,1725412055351,-1978.5,0.00027671,2]
[337071829,1725412055374,-864.76,0.00027671,2]
[337071830,1725412055397,-500.0,0.00027671,2]
[337071831,1725412055417,-6313.47,0.00027671,2]
[337071832,1725412055444,-500.0,0.00027671,2]
[337071833,1725412055465,-500.0,0.00027671,2]
[337071834,1725412055486,-500.0,0.00027671,2]
[337071835,1725412055508,-753.02,0.00027671,2]
[337071836,1725412055532,-1387.470918,0.00027671,7]
[337071837,1725412055552,-500.0,0.00027671,2]
[337071838,1725412055667,-1387.470918,0.00027671,7]
[337071839,1725412055695,-500.0,0.00027671,2]
[337071840,1725412055717,-583.50566181,0.00027671,2]
[337071841,1725412055740,-996.8,0.00027671,2]
[337071842,1725412055765,-500.0,0.00027671,2]
[337071843,1725412055785,-500.0,0.00027671,2]
[337071844,1725412055807,-500.0,0.00027671,2]
[337071845,1725412055829,-548.33083203,0.00027671,2]
[337071846,1725412055851,-500.0,0.00027671,2]
[337071847,1725412055874,-500.0,0.00027671,2]
[337071848,1725412055896,-151.0,0.00027671,7]
[337071849,1725412055918,-500.0,0.00027671,2]
[337071850,1725412055942,-500.0,0.00027671,2]
[337071851,1725412055963,-783.29,0.00027671,2]
[337071852,1725412055986,-6777.17,0.00027671,2]
[337071853,1725412056007,-151.0,0.00027671,7]
[337071854,1725412056033,-3455.12,0.00027671,2]
[337071855,1725412056055,-500.0,0.00027671,2]
[337071856,1725412056077,-500.0,0.00027671,2]
[337071857,1725412056100,-504.17735652,0.00027671,2]
[337071858,1725412056121,-500.0,0.00027671,2]
[337071859,1725412056144,-2196.47,0.00027671,2]
[337071860,1725412056165,-500.0,0.00027671,2]
[337071861,1725412056187,-1236.04,0.00027671,2]
[337071862,1725412056209,-500.0,0.00027671,2]
[337071863,1725412056231,-500.0,0.00027671,2]
[337071864,1725412056252,-500.0,0.00027671,2]
[337071865,1725412056278,-3620.6,0.00027671,2]
[337071866,1725412056301,-500.0,0.00027671,2]
[337071867,1725412056324,-731.84,0.00027671,2]
[337071868,1725412056348,-500.0,0.00027671,2]
[337071869,1725412056370,-585.46,0.00027671,2]
[337071870,1725412056390,-500.0,0.00027671,2]
[337071871,1725412056411,-500.0,0.00027671,2]
[337071872,1725412056433,-506.38624671,0.00027671,2]
[337071873,1725412056456,-529.4,0.00027671,2]
[337071874,1725412056478,-151.148213,0.00027671,7]
[337071875,1725412056498,-500.0,0.00027671,2]
[337071876,1725412056524,-500.0,0.00027671,2]
[337071877,1725412056546,-68802.23,0.00027671,2]
[337071878,1725412056568,-151.148213,0.00027671,7]
[337071879,1725412056592,-506.69,0.00027671,2]
[337071880,1725412056615,-500.0,0.00027671,2]
[337071881,1725412056636,-271.16798836,0.00027671,2]
[337071882,1725412056662,-151.0,0.00027671,7]
[337071883,1725412056683,-500.0,0.00027671,2]
[337071884,1725412056711,-500.0,0.00027671,2]
[337071885,1725412056733,-1676.36,0.00027671,2]
[337071886,1725412056759,-500.0,0.00027671,2]
[337071887,1725412056786,-1732.62,0.00027671,2]
[337071888,1725412056809,-500.0,0.00027671,2]
[337071889,1725412056832,-500.0,0.00027671,2]
[337071890,1725412056854,-500.0,0.00027671,2]
[337071891,1725412056877,-500.0,0.00027671,2]
[337071892,1725412056900,-500.0,0.00027671,2]
[337071893,1725412056923,-500.0,0.00027671,2]
[337071894,1725412056946,-500.0,0.00027671,2]
[337071895,1725412056967,-500.0,0.00027671,2]
[337071896,1725412056988,-500.0,0.00027671,2]
[337071897,1725412057008,-500.0,0.00027671,2]
[337071898,1725412057031,-500.0,0.00027671,2]
[337071899,1725412057052,-2131.47148659,0.00027752,2]
[337071900,1725412057075,-150.0,0.00027884,2]
[337071901,1725412057097,-11571.44,0.00027933,2]
[337071902,1725412057119,-11571.44,0.00027933,2]
[337071903,1725412057142,-1387.470918,0.00027934,7]
[337071904,1725412057164,-1387.470918,0.00027934,7]
[337071905,1725412057185,-151.0,0.00027934,7]
[337071906,1725412057207,-151.0,0.00027934,7]
[337071907,1725412057229,-151.148213,0.00027934,7]
[337071908,1725412057250,-151.148213,0.00027934,7]
[337071909,1725412057280,-151.0,0.00027934,7]
[337071910,1725412057303,-57499.3237202,0.00027934,3]
[337071911,1725412057324,-11571.44,0.00027944,2]
[337071912,1725412057346,-11571.44,0.00027944,2]
[337071913,1725412057368,-11571.44,0.00027944,2]
[337071914,1725412057392,-11571.44,0.00027944,2]
[337071915,1725412057414,-11571.63425284,0.00027944,2]
[337071916,1725412057434,-500.0,0.00027945,2]
[337071917,1725412057456,-500.0,0.00027945,2]
[337071918,1725412057481,-500.0,0.00027945,2]
[337071919,1725412057503,-1294.43,0.00027945,2]
[337071920,1725412057534,-500.0,0.00027945,2]
[337071921,1725412057647,-500.0,0.00027945,2]
[337071922,1725412057669,-500.0,0.00027945,2]
[337071923,1725412057690,-500.0,0.00027945,2]
[337071924,1725412057713,-500.0,0.00027945,2]